bitfinex-derivatives/quotes_BTCF0:USTF0_20250130
["timestamp","ask_amount","ask_price","bid_price","bid_amount"]
[1738268011602,0.73800981,105710.0,105700.0,0.1503419]
[1738268012307,0.73900981,105710.0,105700.0,0.1503419]
[1738268013006,0.74200981,105710.0,105700.0,0.1503419]
[1738268013205,0.74100981,105710.0,105700.0,0.1503419]
[1738268013712,0.73800981,105710.0,105700.0,0.1503419]
[1738268014112,0.28333875,105710.0,105700.0,0.7494439]
[1738268014405,0.28333875,105710.0,105700.0,0.85258699]
[1738268014710,0.28333875,105710.0,105700.0,0.7494439]
[1738268015199,0.19945703,105710.0,105700.0,0.7494439]
[1738268015405,0.19945703,105710.0,105700.0,0.85258699]
[1738268015604,0.190185,105710.0,105700.0,0.7494439]
[1738268015806,0.3874948,105720.0,105700.0,0.70338499]
[1738268016110,0.3874948,105720.0,105710.0,0.599385]
[1738268016713,0.49063789,105720.0,105710.0,0.599385]
[1738268018210,0.39702944,105720.0,105710.0,0.599385]
[1738268018613,0.39702944,105720.0,105710.0,0.70252809]
[1738268019113,0.39702944,105720.0,105710.0,0.599385]
[1738268019316,0.19871164,105720.0,105710.0,0.599385]
[1738268020918,0.30185473,105720.0,105710.0,0.238585]
[1738268021311,0.30185473,105720.0,105710.0,0.599385]
[1738268022116,0.30185473,105720.0,105710.0,0.549985]
[1738268029722,0.1984597,105730.0,105720.0,0.189167]
[1738268029917,0.1984597,105730.0,105720.0,1.03297009]
[1738268030823,0.1984597,105730.0,105720.0,1.00781009]
[1738268031025,0.3886087,105730.0,105720.0,0.929827]
[1738268032223,0.1902909,105730.0,105720.0,1.21066624]
[1738268032831,0.1932909,105730.0,105720.0,1.2201504]
[1738268033019,0.0041419,105730.0,105720.0,1.2201504]
[1738268033525,0.0041419,105730.0,105720.0,1.32329349]
[1738268035229,0.0041419,105730.0,105720.0,1.42643658]
[1738268035722,0.0041419,105730.0,105720.0,1.26706802]
[1738268042629,0.0041419,105730.0,105720.0,1.37021111]
[1738268042841,0.27540095,105760.0,105750.0,0.189113]
[1738268043147,0.27540095,105760.0,105750.0,0.70305609]
[1738268043442,0.08630095,105760.0,105750.0,0.84365609]
[1738268044344,0.09430095,105760.0,105750.0,0.84365609]
[1738268044644,0.09730095,105760.0,105750.0,0.84365609]
[1738268046545,0.01241923,105760.0,105750.0,0.84365609]
[1738268047540,0.0001419,105770.0,105760.0,0.189095]
[1738268047740,0.0001419,105770.0,105760.0,0.72819809]
[1738268048644,0.00155125,105770.0,105760.0,0.72819809]
[1738268048853,0.00955125,105770.0,105760.0,0.72919809]
[1738268049747,0.01319459,105770.0,105760.0,0.72919809]
[1738268051039,0.01379195,105770.0,105760.0,0.72919809]
[1738268052844,0.01379195,105770.0,105760.0,0.73865355]
[1738268053051,0.20286895,105770.0,105760.0,0.73865355]
[1738268053641,0.01379195,105770.0,105760.0,0.73865355]
[1738268054849,0.78405811,105800.0,105780.0,0.189051]
[1738268054850,0.189051,105790.0,105780.0,0.189051]
[1738268055046,0.189051,105790.0,105780.0,0.549851]
[1738268056040,0.29419409,105790.0,105780.0,0.549851]
[1738268056943,0.29919409,105790.0,105780.0,0.549851]
[1738268057951,0.29419409,105790.0,105780.0,0.549851]
[1738268058152,0.30019409,105790.0,105780.0,0.549851]
[1738268058951,0.29819409,105790.0,105780.0,0.549851]
[1738268059146,0.30019409,105790.0,105780.0,0.549851]
[1738268061948,0.197051,105790.0,105780.0,0.549851]
[1738268069564,0.197051,105790.0,105780.0,0.589851]
[1738268069763,0.197051,105790.0,105780.0,0.69299409]
[1738268069967,0.008,105790.0,105780.0,0.71815409]
[1738268070374,0.197041,105790.0,105780.0,0.615011]
[1738268070670,0.197041,105790.0,105780.0,0.589851]
[1738268070873,0.28192272,105790.0,105780.0,0.589851]
[1738268071073,0.28192272,105790.0,105780.0,0.69299409]
[1738268071570,0.28192272,105790.0,105780.0,0.589851]
[1738268073162,0.28192272,105790.0,105780.0,0.950651]
[1738268073766,0.09288172,105790.0,105780.0,1.05379409]
[1738268074066,0.09288172,105790.0,105780.0,1.15693718]
[1738268075176,0.09088172,105790.0,105780.0,1.15693718]
[1738268076272,0.11357798,105800.0,105790.0,0.189041]
[1738268076465,0.11357798,105800.0,105790.0,0.99294409]
[1738268077576,0.30260198,105800.0,105790.0,0.96778409]
[1738268077770,0.30260198,105800.0,105790.0,0.99294409]
[1738268077977,0.30360198,105800.0,105790.0,0.99294409]
[1738268079183,0.1901659,105800.0,105790.0,0.99294409]
[1738268079483,0.1901659,105800.0,105790.0,1.04064409]
[1738268080486,0.4445942,105820.0,105790.0,0.85160309]
[1738268080676,0.4445942,105820.0,105810.0,0.65294909]
[1738268080875,0.4445942,105820.0,105810.0,0.67810909]
[1738268081079,0.4445942,105820.0,105810.0,0.76890909]
[1738268081278,0.4445942,105820.0,105810.0,1.17410909]
[1738268081482,0.4445942,105820.0,105810.0,1.19410909]
[1738268081671,0.4445942,105820.0,105810.0,1.17410909]
[1738268082577,0.19041528,105820.0,105810.0,1.17410909]
[1738268083178,0.188997,105820.0,105810.0,1.17410909]
[1738268083475,0.20156356,105820.0,105810.0,1.17410909]
[1738268083684,0.20356356,105820.0,105810.0,1.17410909]
[1738268083983,0.20356356,105820.0,105810.0,1.19410909]
[1738268086287,0.189006,105810.0,105800.0,0.5751239]
[1738268086481,0.189006,105810.0,105800.0,0.5951239]
[1738268087378,0.191006,105810.0,105800.0,0.69826699]
[1738268087878,0.192006,105810.0,105800.0,0.69826699]
[1738268089080,0.192006,105810.0,105800.0,0.5951239]
[1738268090480,0.192006,105810.0,105800.0,0.5699639]
[1738268092582,0.237106,105810.0,105800.0,0.5699639]
[1738268094383,0.237106,105810.0,105800.0,0.5499639]
[1738268096386,0.237106,105810.0,105800.0,0.6099639]
[1738268097492,0.237106,105810.0,105800.0,0.5499639]
[1738268100291,1.16499218,105810.0,105800.0,0.0001419]
[1738268100496,0.189041,105790.0,105780.0,0.64163924]
[1738268100694,0.29218409,105790.0,105780.0,0.28083924]
[1738268100998,0.33948409,105790.0,105780.0,0.64163924]
[1738268101289,0.189041,105790.0,105780.0,0.98921486]
[1738268101690,0.189041,105790.0,105780.0,1.03551486]
[1738268103098,0.189041,105790.0,105780.0,0.93437177]
[1738268103296,0.29218409,105790.0,105780.0,0.93437177]
[1738268104692,0.189041,105790.0,105780.0,0.598159]
[1738268105995,0.19844408,105790.0,105780.0,0.598159]
[1738268106994,0.30158717,105790.0,105780.0,0.598159]
[1738268108005,0.0001419,105800.0,105780.0,0.56224309]
[1738268108199,0.1891729,105800.0,105790.0,0.549841]
[1738268108698,0.19878342,105800.0,105790.0,0.549841]
[1738268109094,0.30192651,105800.0,105790.0,0.549841]
[1738268109893,0.30292651,105800.0,105790.0,0.549841]
[1738268115403,0.34592651,105800.0,105790.0,0.549841]
[1738268117607,0.0011419,105800.0,105790.0,0.78814409]
[1738268117905,1e-08,105800.0,105790.0,0.78814409]
[1738268118101,1e-08,105800.0,105790.0,2.28814409]
[1738268118891,0.11357798,105810.0,105790.0,2.28814409]
[1738268119096,0.14074284,105820.0,105810.0,0.189006]
[1738268119301,0.14074284,105820.0,105810.0,0.78810909]
[1738268119500,0.14074284,105820.0,105810.0,0.684966]
[1738268120615,0.43587393,105820.0,105810.0,0.659806]
[1738268120908,0.43887393,105820.0,105810.0,0.684966]
[1738268121408,0.29813109,105820.0,105810.0,0.684966]
[1738268122406,0.29813109,105820.0,105810.0,0.659806]
[1738268122610,0.29813109,105820.0,105810.0,0.684966]
[1738268122811,0.38953109,105820.0,105810.0,0.659806]
[1738268123010,0.38953109,105820.0,105810.0,0.3608]
[1738268125208,0.38953109,105820.0,105810.0,0.549806]
[1738268133214,0.38953109,105820.0,105810.0,0.599806]
[1738268134013,0.194988,105820.0,105810.0,0.599806]
[1738268134614,0.29813109,105820.0,105810.0,0.599806]
[1738268142313,0.006,105820.0,105810.0,0.599806]
[1738268142518,0.194972,105820.0,105810.0,0.599806]
[1738268143420,0.29811509,105820.0,105810.0,0.599806]
[1738268148017,0.194972,105820.0,105810.0,0.599806]
[1738268149816,0.006,105820.0,105810.0,0.599806]
[1738268150010,0.006,105820.0,105810.0,0.646406]
[1738268151122,0.006,105820.0,105810.0,0.87041088]
[1738268153522,0.10914309,105820.0,105810.0,0.87041088]
[1738268155320,0.29811509,105820.0,105810.0,0.87041088]
[1738268162632,0.26250352,105820.0,105810.0,0.87041088]
[1738268165124,0.194972,105820.0,105810.0,0.87041088]
[1738268165324,0.26250352,105820.0,105810.0,0.87041088]
[1738268171034,0.07353152,105820.0,105810.0,0.87041088]
[1738268172737,0.07353152,105820.0,105810.0,1.17633942]
[1738268177541,0.07353152,105820.0,105810.0,1.12973942]
[1738268179246,0.14106304,105820.0,105810.0,1.10461942]
[1738268179448,0.33003504,105820.0,105810.0,0.86561342]
[1738268179748,0.42243504,105820.0,105810.0,0.86561342]
[1738268180245,0.48996656,105820.0,105810.0,0.86561342]
[1738268180444,0.18899,105810.0,105800.0,0.78716321]
[1738268180639,0.18899,105810.0,105770.0,0.72505804]
[1738268180640,0.60869456,105810.0,105770.0,0.72505804]
[1738268180836,0.75243756,105780.0,105770.0,0.70251949]
[1738268181146,0.77759756,105780.0,105770.0,0.70251949]
[1738268181338,0.91159756,105780.0,105770.0,0.70110104]
[1738268181735,0.189061,105770.0,105760.0,0.95148789]
[1738268181937,0.68492404,105770.0,105760.0,0.95148789]
[1738268182949,0.6529114,105770.0,105760.0,0.95148789]
[1738268183446,0.6559114,105770.0,105760.0,0.0001419]
[1738268183848,0.189097,105750.0,105740.0,0.3608]
[1738268184038,0.3951978,105750.0,105740.0,0.3608]
[1738268184242,0.4409978,105750.0,105740.0,0.3608]
[1738268185147,0.4409978,105750.0,105740.0,0.3618]
[1738268185552,0.4409978,105750.0,105740.0,0.550915]
[1738268185744,0.3379474,105750.0,105740.0,0.550915]
[1738268186349,0.4409978,105750.0,105740.0,0.550915]
[1738268186541,0.4409978,105750.0,105740.0,0.553915]
[1738268187239,0.3379474,105750.0,105740.0,0.553915]
[1738268187644,0.4409978,105750.0,105740.0,0.553915]
[1738268188051,0.4409978,105750.0,105740.0,0.3648]
[1738268188250,0.3379474,105750.0,105740.0,0.3648]
[1738268188555,0.34756356,105750.0,105740.0,0.553915]
[1738268188944,0.189097,105750.0,105740.0,0.553915]
[1738268189146,0.2922793,105760.0,105750.0,0.189097]
[1738268189346,0.2922793,105760.0,105750.0,0.549897]
[1738268189552,0.2922793,105760.0,105750.0,0.638897]
[1738268190758,0.2922793,105760.0,105750.0,0.688897]
[1738268192048,0.30191939,105760.0,105750.0,0.688897]
[1738268200356,0.0001419,105760.0,105750.0,0.7919474]
[1738268200657,0.0001419,105760.0,105750.0,0.8378474]
[1738268200960,0.1892199,105760.0,105750.0,0.734797]
[1738268201165,0.2922703,105760.0,105750.0,0.734797]
[1738268202272,0.1892199,105760.0,105750.0,0.734797]
[1738268203260,0.0001419,105760.0,105750.0,0.8378474]
[1738268203861,0.1892199,105760.0,105750.0,0.8378474]
[1738268204165,0.0001419,105760.0,105750.0,0.8378474]
[1738268210873,0.0001419,105760.0,105750.0,0.734797]
[1738268213172,0.08436897,105760.0,105750.0,0.734797]
[1738268218570,0.08436897,105760.0,105750.0,0.8023899]
[1738268222471,0.11267413,105770.0,105760.0,0.189078]
[1738268222780,0.11267413,105770.0,105760.0,0.8626309]
[1738268223080,0.19755984,105770.0,105760.0,0.8626309]
[1738268223761,0.20055984,105770.0,105760.0,0.8626309]
[1738268224161,0.20055984,105770.0,105760.0,0.9302238]
[1738268224576,0.20155984,105770.0,105760.0,0.9302238]
[1738268226077,0.004,105770.0,105760.0,0.9302238]
[1738268227079,0.11281603,105780.0,105760.0,0.8087387]
[1738268227281,0.11281603,105780.0,105770.0,0.7055529]
[1738268227473,0.11281603,105780.0,105770.0,0.9155529]
[1738268228575,0.11281603,105780.0,105770.0,0.84796]
[1738268228783,0.11281603,105780.0,105770.0,0.95090184]
[1738268228983,0.11281603,105780.0,105770.0,0.95290184]
[1738268229580,0.0001419,105780.0,105770.0,0.95290184]
[1738268231180,0.0001419,105780.0,105770.0,0.95890184]
[1738268234284,0.44320792,105800.0,105790.0,0.189024]
[1738268234482,0.24307413,105800.0,105790.0,1.24872584]
[1738268234874,0.11267413,105800.0,105790.0,1.24872584]
[1738268235078,0.25351679,105810.0,105800.0,0.189006]
[1738268235381,0.25351679,105810.0,105800.0,0.88790784]
[1738268237191,0.25451679,105810.0,105800.0,0.88790784]
[1738268238282,0.25651679,105810.0,105800.0,0.88790784]
[1738268238790,0.003,105810.0,105800.0,0.88790784]
[1738268240582,0.003,105810.0,105800.0,0.89719619]
[1738268244688,0.11267413,105840.0,105810.0,0.188989]
[1738268244886,0.30361597,105840.0,105830.0,0.910553]
[1738268245191,0.30361597,105840.0,105830.0,0.955673]
[1738268245994,0.30761597,105840.0,105830.0,0.955673]
[1738268246494,0.30361597,105840.0,105830.0,0.955673]
[1738268249096,0.20067413,105840.0,105830.0,1.05861484]
[1738268249397,0.14084266,105850.0,105840.0,0.188935]
[1738268249592,0.14084266,105850.0,105840.0,0.88823684]
[1738268250099,0.11271892,105850.0,105840.0,0.88823684]
[1738268250396,0.21566076,105850.0,105840.0,0.785295]
[1738268250602,0.21666076,105850.0,105840.0,0.785295]
[1738268251096,0.40557776,105850.0,105840.0,0.785295]
[1738268251396,0.40557776,105850.0,105840.0,0.38636]
[1738268251596,0.40757776,105850.0,105840.0,0.3608]
[1738268251800,0.188935,105840.0,105830.0,0.6408]
[1738268252098,0.188953,105830.0,105820.0,0.0001419]
[1738268252283,0.188953,105830.0,105810.0,0.00141699]
[1738268252284,0.46374184,105830.0,105810.0,0.00141699]
[1738268252597,0.188971,105820.0,105810.0,0.00141699]
[1738268253186,0.188971,105820.0,105810.0,0.19040599]
[1738268253187,0.232771,105820.0,105810.0,0.19040599]
[1738268253391,0.232771,105820.0,105810.0,0.65414783]
[1738268253598,0.232771,105820.0,105810.0,0.55120599]
[1738268253999,0.232771,105820.0,105810.0,0.551789]
[1738268254694,0.232771,105820.0,105810.0,0.65473084]
[1738268254903,0.232771,105820.0,105810.0,0.66073084]
[1738268255090,0.0438,105820.0,105810.0,0.68629084]
[1738268255288,0.19841492,105830.0,105820.0,0.188971]
[1738268255493,0.24221492,105830.0,105820.0,0.589771]
[1738268255696,0.24221492,105830.0,105820.0,0.69271284]
[1738268256197,0.24221492,105830.0,105820.0,0.65271284]
[1738268256599,0.24221492,105830.0,105820.0,0.549771]
[1738268257300,0.34515676,105830.0,105820.0,0.549771]
[1738268257599,0.30925676,105830.0,105820.0,0.549771]
[1738268257798,0.20631492,105830.0,105820.0,0.550771]
[1738268260509,0.20631492,105830.0,105820.0,0.570771]
[1738268264101,0.20631492,105830.0,105820.0,0.550771]
[1738268264897,0.20631492,105830.0,105820.0,0.600771]
[1738268268001,0.20631492,105830.0,105820.0,0.239971]
[1738268268208,0.20631492,105830.0,105820.0,0.189971]
[1738268272611,0.30925676,105830.0,105820.0,0.189971]
[1738268276620,0.20631492,105830.0,105820.0,0.189971]
[1738268277623,0.20631492,105830.0,105820.0,0.229971]
[1738268279119,0.20631492,105830.0,105820.0,0.189971]
[1738268279315,0.30925676,105830.0,105820.0,0.189971]
[1738268280415,0.30925676,105830.0,105820.0,0.229971]
[1738268281222,0.20631492,105830.0,105820.0,0.229971]
[1738268282719,0.27383641,105830.0,105820.0,0.229971]
[1738268282918,0.7021579,105830.0,105820.0,0.001]
[1738268283217,0.63463641,105830.0,105820.0,0.001]
[1738268284527,0.67002184,105830.0,105820.0,0.001]
[1738268284931,0.83903303,105830.0,105820.0,0.001]
[1738268285425,0.83903303,105830.0,105820.0,0.189971]
[1738268285631,0.86423303,105830.0,105820.0,0.189971]
[1738268287233,0.83679003,105830.0,105820.0,0.189971]
[1738268290325,0.188971,105820.0,105810.0,0.07]
[1738268290534,0.188989,105810.0,105800.0,0.0001419]
[1738268290732,0.82510284,105810.0,105800.0,0.0001419]
[1738268290939,0.25306684,105800.0,105770.0,0.18905]
[1738268291124,0.29194892,105780.0,105770.0,0.54985]
[1738268292850,0.29194892,105780.0,105770.0,0.55585]
[1738268294841,0.29194892,105780.0,105770.0,0.56085]
[1738268295347,0.75565584,105780.0,105770.0,0.011]
[1738268295646,0.75565584,105780.0,105770.0,0.008]
[1738268295846,0.65274892,105780.0,105770.0,0.008]
[1738268298243,0.75565584,105780.0,105770.0,0.008]
[1738268300650,0.76519597,105780.0,105770.0,0.008]
[1738268302151,0.76519597,105780.0,105770.0,0.005]
[1738268303452,0.76519597,105780.0,105760.0,0.0001419]
[1738268303453,0.18906,105770.0,105760.0,0.0001419]
[1738268303653,0.189096,105750.0,105740.0,0.5513222]
[1738268303850,0.29200292,105750.0,105740.0,0.5513222]
[1738268305251,0.29200292,105750.0,105740.0,0.0014182]
[1738268305447,0.29200292,105750.0,105740.0,0.0054182]
[1738268305954,0.33850292,105750.0,105740.0,0.0144182]
[1738268306155,0.33850292,105750.0,105740.0,0.2035322]
[1738268307955,0.33850292,105750.0,105740.0,0.1985322]
[1738268308748,0.33850292,105750.0,105740.0,0.1945322]
[1738268310952,0.189096,105750.0,105740.0,0.5553322]
[1738268311349,0.189096,105750.0,105740.0,0.1945322]
[1738268311550,0.29200292,105750.0,105740.0,0.1945322]
[1738268312460,0.30154911,105750.0,105740.0,0.1945322]
[1738268315160,0.34614911,105750.0,105740.0,0.1945322]
[1738268316670,0.34614911,105750.0,105740.0,0.2945322]
[1738268318062,0.34614911,105750.0,105740.0,0.2345322]
[1738268322566,0.34614911,105750.0,105740.0,0.5953322]
[1738268322972,0.34614911,105750.0,105740.0,0.2345322]
[1738268323267,0.34614911,105750.0,105740.0,0.1945322]
[1738268323467,0.44905603,105750.0,105740.0,0.1945322]
[1738268323668,0.49555603,105750.0,105740.0,0.1945322]
[1738268323865,0.43774911,105750.0,105740.0,0.1945322]
[1738268325062,0.550314,105750.0,105740.0,0.1945322]
[1738268326772,0.65322092,105750.0,105740.0,0.1945322]
[1738268327974,0.79478911,105750.0,105740.0,0.1945322]
[1738268328472,1.15558911,105750.0,105740.0,0.1945322]
[1738268329465,1.15558911,105750.0,105740.0,0.004]
[1738268330574,1.04302422,105750.0,105740.0,0.004]
[1738268331274,0.9401173,105750.0,105740.0,0.193114]
[1738268333068,1.04302422,105750.0,105740.0,0.193114]
[1738268333267,0.9675603,105750.0,105740.0,0.193114]
[1738268333468,1.07046722,105750.0,105740.0,0.193114]
[1738268333872,0.9675603,105750.0,105740.0,0.193114]
[1738268334076,0.5151603,105750.0,105740.0,0.243114]
[1738268334778,0.5151603,105750.0,105740.0,0.70682092]
[1738268334779,0.16901119,105750.0,105740.0,0.70682092]
[1738268335073,0.16901119,105750.0,105740.0,0.603914]
[1738268335477,0.16901119,105750.0,105740.0,0.70682092]
[1738268336580,0.11336187,105750.0,105740.0,0.651191]
[1738268336765,0.11336187,105750.0,105740.0,0.75409792]
[1738268340183,0.41505524,105760.0,105750.0,0.189096]
[1738268340383,0.41505524,105760.0,105750.0,0.749296]
[1738268340686,0.12306232,105760.0,105750.0,0.749296]
[1738268340892,0.11350377,105760.0,105750.0,0.98026984]
[1738268341185,0.14160632,105770.0,105760.0,0.189078]
[1738268341375,0.43357324,105770.0,105760.0,0.619878]
[1738268342888,0.37685874,105770.0,105760.0,0.619878]
[1738268343284,0.37785874,105770.0,105760.0,0.619878]
[1738268343788,0.27495182,105770.0,105760.0,0.619878]
[1738268344289,0.27695182,105770.0,105760.0,0.619878]
[1738268344987,0.08789182,105770.0,105760.0,0.619878]
[1738268346493,0.003,105770.0,105760.0,0.72278492]
[1738268346791,0.08503372,105780.0,105770.0,0.18906]
[1738268346984,0.00141866,105790.0,105780.0,0.189042]
[1738268347176,0.00141866,105790.0,105780.0,0.87274892]
[1738268347381,0.00141866,105790.0,105780.0,0.769842]
[1738268347892,0.19044266,105790.0,105780.0,0.795002]
[1738268349188,0.19044266,105790.0,105780.0,0.798002]
[1738268349990,0.19044266,105790.0,105780.0,0.799002]
[1738268352094,0.19044266,105790.0,105780.0,0.773842]
[1738268352392,0.19044266,105790.0,105780.0,0.799002]
[1738268353198,0.00141866,105790.0,105780.0,0.799002]
[1738268353595,0.00141866,105790.0,105780.0,0.773842]
[1738268353996,0.00141866,105790.0,105780.0,0.799002]
[1738268354398,0.00141866,105790.0,105780.0,0.90190892]
[1738268354995,0.198432,105800.0,105790.0,0.189024]
[1738268355194,0.198432,105800.0,105790.0,0.389024]
[1738268355495,0.198432,105800.0,105790.0,0.749824]
[1738268356189,0.198432,105800.0,105790.0,0.774984]
[1738268356382,0.0471,105810.0,105800.0,0.189006]
[1738268356588,0.236088,105810.0,105800.0,0.684966]
[1738268356998,0.0471,105810.0,105800.0,0.684966]
[1738268357296,0.25141812,105820.0,105810.0,0.188988]
[1738268357492,0.29682113,105830.0,105810.0,0.46370692]
[1738268357698,0.29682113,105830.0,105820.0,0.549771]
[1738268358792,0.29782113,105830.0,105820.0,0.549771]
[1738268358997,0.40072805,105830.0,105820.0,0.549771]
[1738268359203,0.40072805,105830.0,105820.0,0.599771]
[1738268359395,0.39972805,105830.0,105820.0,0.599771]
[1738268359993,0.01096413,105830.0,105820.0,0.72783792]
[1738268360192,0.01096413,105830.0,105820.0,0.77613792]
[1738268360501,0.30282405,105830.0,105820.0,0.673231]
[1738268360802,0.30282405,105830.0,105820.0,0.574931]
[1738268360998,0.34972405,105830.0,105820.0,0.574931]
[1738268364104,0.34972405,105830.0,105820.0,0.614931]
[1738268364705,0.39592405,105830.0,105820.0,0.614931]
[1738268365000,0.39592405,105830.0,105820.0,0.574931]
[1738268366700,0.39592405,105830.0,105820.0,0.674931]
[1738268367301,0.20697105,105830.0,105810.0,0.4086419]
[1738268367506,0.188971,105820.0,105810.0,0.8327429]
[1738268368601,0.188971,105820.0,105810.0,0.8367429]
[1738268369403,0.29187792,105820.0,105810.0,0.7890429]
[1738268369910,0.29187792,105820.0,105810.0,0.7639229]
[1738268370101,0.29187792,105820.0,105810.0,0.7890429]
[1738268370301,0.188971,105820.0,105810.0,0.7890429]
[1738268370908,0.188971,105820.0,105810.0,0.7639229]
[1738268371110,0.188971,105820.0,105810.0,0.7890429]
[1738268372607,0.188971,105820.0,105810.0,0.7639229]
[1738268372804,0.188971,105820.0,105810.0,0.7890429]
[1738268373001,1.01347792,105820.0,105810.0,0.2141419]
[1738268373201,0.97811384,105820.0,105790.0,0.00141767]
[1738268373401,0.29191292,105800.0,105790.0,0.00141767]
[1738268373905,0.189006,105800.0,105790.0,0.65414859]
[1738268374111,0.235302,105810.0,105800.0,0.189006]
[1738268374307,0.33835082,105810.0,105800.0,0.189006]
[1738268375210,0.34772192,105810.0,105800.0,0.189006]
[1738268375608,0.34772192,105810.0,105800.0,0.192006]
[1738268376404,0.39412192,105810.0,105800.0,0.192006]
[1738268377602,0.39412192,105810.0,105800.0,0.193006]
[1738268379206,0.49702884,105810.0,105800.0,0.193006]
[1738268380308,0.39412192,105810.0,105800.0,0.193006]
[1738268380514,0.0001419,105810.0,105800.0,0.628926]
[1738268380716,0.0001419,105810.0,105800.0,0.77783292]
[1738268381017,0.0001419,105810.0,105800.0,0.722526]
[1738268383817,0.29203682,105810.0,105800.0,0.674926]
[1738268384022,0.29203682,105810.0,105800.0,0.649806]
[1738268384323,0.29203682,105810.0,105800.0,0.675006]
[1738268384723,0.34033682,105810.0,105800.0,0.649806]
[1738268385023,0.34033682,105810.0,105800.0,0.675006]
[1738268386823,0.34033682,105810.0,105800.0,0.649806]
[1738268390325,0.15134882,105810.0,105800.0,0.649806]
[1738268391119,0.34033682,105810.0,105800.0,0.649806]
[1738268392326,0.15134882,105810.0,105800.0,0.649806]
[1738268392528,0.0001419,105810.0,105800.0,0.649806]
[1738268392830,0.0001419,105810.0,105800.0,0.692006]
[1738268393824,0.0001419,105810.0,105800.0,0.79491292]
[1738268396422,0.33131882,105830.0,105820.0,0.188971]
[1738268396629,0.43422574,105830.0,105820.0,0.775091]
[1738268396830,0.43422574,105830.0,105820.0,0.816391]
[1738268397329,0.29328892,105830.0,105820.0,0.816391]
[1738268397825,0.29728892,105830.0,105820.0,0.816391]
[1738268398831,0.29428892,105830.0,105820.0,0.816391]
[1738268399831,0.29328892,105830.0,105820.0,0.816391]
[1738268400223,0.29328892,105830.0,105820.0,0.791071]
[1738268400630,0.33328892,105830.0,105820.0,0.791071]
[1738268403730,0.50370692,105830.0,105810.0,0.0001419]
[1738268403934,0.84208484,105820.0,105810.0,0.0001419]
[1738268404331,0.189006,105800.0,105790.0,0.549818]
[1738268404635,0.29191292,105800.0,105790.0,0.575218]
[1738268404829,0.37561292,105800.0,105790.0,0.549818]
[1738268405429,0.37561292,105800.0,105790.0,0.3608]
[1738268405731,0.189024,105790.0,105780.0,0.5499789]
[1738268405934,0.29193092,105790.0,105780.0,0.5499789]
[1738268407023,0.10304882,105810.0,105780.0,0.92190782]
[1738268407339,0.10304882,105810.0,105800.0,0.189006]
[1738268407340,0.29204782,105810.0,105800.0,0.189006]
[1738268407528,0.29204782,105810.0,105800.0,0.549806]
[1738268408430,0.29204782,105810.0,105800.0,0.552806]
[1738268408939,0.30137885,105810.0,105800.0,0.552806]
[1738268409830,0.79048577,105810.0,105800.0,0.003]
[1738268410028,0.189024,105790.0,105780.0,0.5499809]
[1738268410233,0.29193092,105790.0,105780.0,0.5499809]
[1738268410428,0.33263092,105790.0,105780.0,0.5499809]
[1738268411440,0.33263092,105790.0,105780.0,0.5529809]
[1738268412534,0.33263092,105790.0,105780.0,0.5549809]
[1738268413334,0.33263092,105790.0,105780.0,0.5529809]
[1738268413537,0.33263092,105790.0,105780.0,0.5539809]
[1738268414630,0.33263092,105790.0,105780.0,0.5739809]
[1738268418433,0.34221462,105790.0,105780.0,0.5739809]
[1738268418638,0.0433,105800.0,105790.0,0.189024]
[1738268418836,0.15517603,105810.0,105800.0,0.189006]
[1738268419035,0.15517603,105810.0,105800.0,0.813806]
[1738268419244,0.25808295,105810.0,105800.0,2.339166]
[1738268419448,0.25808295,105810.0,105800.0,0.839166]
[1738268420343,0.45007195,105810.0,105800.0,0.839166]
[1738268421037,0.45007195,105810.0,105800.0,0.28936]
[1738268421234,0.45007195,105810.0,105800.0,0.21736]
[1738268421441,0.44707195,105810.0,105800.0,0.198]
[1738268421840,0.44707195,105810.0,105800.0,0.2234]
[1738268422434,0.33403782,105810.0,105800.0,0.2234]
[1738268422844,0.33403782,105810.0,105800.0,0.412406]
[1738268423442,0.33403782,105810.0,105800.0,0.384006]
[1738268423647,0.33403782,105810.0,105800.0,0.383006]
[1738268424840,0.33403782,105810.0,105800.0,0.408366]
[1738268426441,0.33403782,105810.0,105800.0,0.194]
[1738268426644,0.79774474,105810.0,105800.0,0.004]
[1738268427841,0.69483782,105810.0,105800.0,0.004]
[1738268428042,0.79774474,105810.0,105800.0,0.004]
[1738268428645,0.69483782,105810.0,105800.0,0.003]
[1738268428840,0.69483782,105810.0,105800.0,0.004]
[1738268429044,0.69483782,105810.0,105800.0,0.193006]
[1738268429558,0.69483782,105810.0,105800.0,0.189006]
[1738268429744,0.69483782,105810.0,105800.0,0.193006]
[1738268430953,0.79774474,105810.0,105800.0,0.193006]
[1738268431158,0.79774474,105810.0,105800.0,0.004]
[1738268432854,0.189024,105790.0,105780.0,0.5367779]
[1738268433057,0.29193092,105790.0,105780.0,0.7467779]
[1738268433359,0.32813092,105790.0,105780.0,0.7467779]
[1738268434055,0.32813092,105790.0,105780.0,0.7497779]
[1738268435444,0.32813092,105790.0,105780.0,0.5607419]
[1738268435642,0.32813092,105790.0,105780.0,0.5617419]
[1738268435957,0.32813092,105790.0,105780.0,0.3171419]
[1738268438663,0.32813092,105790.0,105780.0,0.2261839]
[1738268440254,0.32813092,105790.0,105780.0,0.0371419]
[1738268440469,0.32813092,105790.0,105780.0,0.0041419]
[1738268441449,0.32813092,105790.0,105780.0,0.0241419]
[1738268442552,0.32813092,105790.0,105780.0,0.0041419]
[1738268442760,0.33758636,105790.0,105780.0,0.0041419]
[1738268446861,0.33758636,105790.0,105780.0,0.1931839]
[1738268450060,0.33758636,105790.0,105780.0,0.2431839]
[1738268450266,0.33758636,105790.0,105780.0,0.2627839]
[1738268452262,0.69838636,105790.0,105780.0,0.0737419]
[1738268455268,0.69838636,105790.0,105780.0,0.0391419]
[1738268455468,0.69838636,105790.0,105780.0,0.0381419]
[1738268455664,0.69838636,105790.0,105780.0,0.0391419]
[1738268456166,0.81142049,105790.0,105780.0,0.0391419]
[1738268456858,0.81142049,105790.0,105780.0,0.0041419]
[1738268457262,0.91432741,105790.0,105780.0,0.0041419]
[1738268457465,0.81142049,105790.0,105780.0,0.0041419]
[1738268459769,0.81142049,105790.0,105780.0,0.1931839]
[1738268460773,0.95235731,105790.0,105780.0,0.1931839]
[1738268463166,0.59155731,105790.0,105780.0,0.2431839]
[1738268463356,0.55535731,105790.0,105780.0,0.2779839]
[1738268463565,0.45245039,105790.0,105780.0,0.3378439]
[1738268463862,0.55535731,105790.0,105780.0,0.3378439]